[Event "*** Titled Tuesday Blitz"]
[Site "Chess.com"]
[Date "2019.06.04"]
[Round "5"]
[White "jk13"]
[Black "Semen_Khanin"]
[Result "0-1"]
[WhiteElo "2536"]
[BlackElo "2703"]
[TimeControl "180+2"]
[EndTime "14:04:45 PDT"]
[Termination "Semen_Khanin won by resignation"]

1. e4 {[%clk 0:03:01.9]} 1... c5 {[%clk 0:02:59.4]} 2. c3 {[%clk 0:03:03.1]}
2... d5 {[%clk 0:02:59.4]} 3. exd5 {[%clk 0:03:05]} 3... Qxd5 {[%clk 0:03:00.1]}
4. d4 {[%clk 0:03:06.9]} 4... Nf6 {[%clk 0:02:59.8]} 5. Nf3 {[%clk 0:03:08.4]}
5... e6 {[%clk 0:03:00.8]} 6. Na3 {[%clk 0:03:09]} 6... cxd4 {[%clk 0:03:00.7]}
7. Nb5 {[%clk 0:03:09.2]} 7... Qd8 {[%clk 0:03:00.5]} 8. Nbxd4 {[%clk
0:03:09.3]} 8... a6 {[%clk 0:02:57.3]} 9. a4 {[%clk 0:03:09.6]} 9... Be7 {[%clk
0:02:57.7]} 10. Bd3 {[%clk 0:03:10.7]} 10... O-O {[%clk 0:02:59.1]} 11. Qe2
{[%clk 0:03:12.3]} 11... Qc7 {[%clk 0:02:59.8]} 12. O-O {[%clk 0:03:13.2]} 12...
Nc6 {[%clk 0:03:01.4]} 13. Re1 {[%clk 0:03:09.8]} 13... Nxd4 {[%clk 0:03:01.9]}
14. Nxd4 {[%clk 0:03:10.8]} 14... b6 {[%clk 0:03:01.7]} 15. Bg5 {[%clk
0:03:04.7]} 15... g6 {[%clk 0:02:40]} 16. Bxf6 {[%clk 0:02:25.4]} 16... Bxf6
{[%clk 0:02:40.6]} 17. Qf3 {[%clk 0:02:27]} 17... Bxd4 {[%clk 0:02:42.1]} 18.
Qxa8 {[%clk 0:02:27.8]} 18... Bxf2+ {[%clk 0:02:27.7]} 19. Kxf2 {[%clk
0:02:28.4]} 19... Bb7 {[%clk 0:02:29]} 20. Qxf8+ {[%clk 0:02:08.8]} 20... Kxf8
{[%clk 0:02:29.5]} 21. Kg1 {[%clk 0:01:58.8]} 21... Qc5+ {[%clk 0:02:28.5]} 22.
Kh1 {[%clk 0:01:57.5]} 22... Qf2 {[%clk 0:02:29.8]} 23. Bf1 {[%clk 0:01:27.5]}
23... Qxb2 {[%clk 0:02:21.9]} 24. c4 {[%clk 0:01:29]} 24... h5 {[%clk
0:02:19.9]} 25. a5 {[%clk 0:01:21.8]} 25... bxa5 {[%clk 0:02:19]} 26. Rab1
{[%clk 0:01:14.2]} 26... Qf2 {[%clk 0:02:19.3]} 27. c5 {[%clk 0:00:54.4]} 27...
h4 {[%clk 0:02:10.5]} 28. h3 {[%clk 0:00:39.5]} 28... a4 {[%clk 0:02:11.4]} 29.
Rec1 {[%clk 0:00:16.9]} 29... Bc6 {[%clk 0:01:59.3]} 30. Rb6 {[%clk 0:00:17.9]}
30... Qe3 {[%clk 0:02:00.2]} 31. Rc4 {[%clk 0:00:08.2]} 31... Qxh3+ {[%clk
0:01:59.3]} 32. Kg1 {[%clk 0:00:09.8]} 32... Qe3+ {[%clk 0:01:59.5]} 33. Kh1
{[%clk 0:00:11.4]} 33... Bd5 {[%clk 0:01:58.5]} 34. c6 {[%clk 0:00:11.9]} 34...
Qxb6 {[%clk 0:01:54.3]} 35. c7 {[%clk 0:00:12.8]} 35... Bb7 {[%clk 0:01:55.9]}
36. c8=Q+ {[%clk 0:00:13.9]} 36... Bxc8 {[%clk 0:01:57.1]} 37. Rxc8+ {[%clk
0:00:15.8]} 37... Kg7 {[%clk 0:01:58.4]} 0-1

[Event "*** Titled Tuesday Blitz"]
[Site "Chess.com"]
[Date "2019.06.04"]
[Round "5"]
[White "platy3"]
[Black "Korchmar_Vasiliy"]
[Result "0-1"]
[WhiteElo "2806"]
[BlackElo "2790"]
[TimeControl "180+2"]
[EndTime "14:04:49 PDT"]
[Termination "Korchmar_Vasiliy won by resignation"]

1. e4 {[%clk 0:03:01.9]} 1... c5 {[%clk 0:03:01.2]} 2. Nf3 {[%clk 0:03:02.8]}
2... d6 {[%clk 0:03:02.6]} 3. d4 {[%clk 0:03:03.9]} 3... cxd4 {[%clk 0:03:03.9]}
4. Nxd4 {[%clk 0:03:05.4]} 4... Nf6 {[%clk 0:03:04.8]} 5. Nc3 {[%clk 0:03:06.8]}
5... Nc6 {[%clk 0:03:06.2]} 6. f3 {[%clk 0:03:02.8]} 6... e5 {[%clk 0:03:06.5]}
7. Nb3 {[%clk 0:03:03.6]} 7... Be7 {[%clk 0:03:07.9]} 8. Be3 {[%clk 0:03:04.1]}
8... O-O {[%clk 0:03:08.7]} 9. Qd2 {[%clk 0:03:05.2]} 9... Be6 {[%clk
0:03:09.4]} 10. O-O-O {[%clk 0:03:04.2]} 10... a5 {[%clk 0:03:10.3]} 11. Bb5
{[%clk 0:03:05.1]} 11... Na7 {[%clk 0:03:10.5]} 12. Bxa7 {[%clk 0:03:03.4]}
12... Rxa7 {[%clk 0:03:11.1]} 13. Kb1 {[%clk 0:03:04.5]} 13... Qc7 {[%clk
0:02:48.5]} 14. a4 {[%clk 0:03:03.3]} 14... Rd8 {[%clk 0:02:45.4]} 15. g4 {[%clk
0:02:54.2]} 15... d5 {[%clk 0:02:43.5]} 16. g5 {[%clk 0:02:55.3]} 16... Nh5
{[%clk 0:02:32.9]} 17. exd5 {[%clk 0:02:48.6]} 17... Bf5 {[%clk 0:02:29.3]} 18.
Ne4 {[%clk 0:02:47.3]} 18... Bb4 {[%clk 0:02:22.8]} 19. c3 {[%clk 0:02:25.8]}
19... Bf8 {[%clk 0:02:23.4]} 20. Ka1 {[%clk 0:02:24.6]} 20... Nf4 {[%clk
0:02:21.1]} 21. d6 {[%clk 0:02:09]} 21... Qb8 {[%clk 0:02:21.8]} 22. d7 {[%clk
0:01:46.4]} 22... Qc7 {[%clk 0:02:17.7]} 23. Qe3 {[%clk 0:01:44]} 23... Raa8
{[%clk 0:02:15.7]} 24. Rd2 {[%clk 0:01:39.5]} 24... Bxd7 {[%clk 0:02:13.5]} 25.
Rhd1 {[%clk 0:01:30.7]} 25... Bxb5 {[%clk 0:02:14.3]} 26. Rxd8 {[%clk
0:01:32.3]} 26... Rxd8 {[%clk 0:02:16.2]} 27. Rxd8 {[%clk 0:01:34]} 27... Qxd8
{[%clk 0:02:17.9]} 28. axb5 {[%clk 0:01:35.7]} 28... Qd5 {[%clk 0:01:58.5]} 29.
Nc1 {[%clk 0:01:03.9]} 29... Qxb5 {[%clk 0:01:56.7]} 30. Ng3 {[%clk 0:01:05.1]}
30... a4 {[%clk 0:01:54.2]} 31. h4 {[%clk 0:01:03.5]} 31... a3 {[%clk
0:01:55.3]} 32. b3 {[%clk 0:01:04.8]} 32... Qc6 {[%clk 0:01:32.7]} 33. Nce2
{[%clk 0:00:51.1]} 33... Qd5 {[%clk 0:01:31.1]} 34. Ka2 {[%clk 0:00:50.5]} 34...
Qd1 {[%clk 0:01:29.7]} 35. Nc1 {[%clk 0:00:44.9]} 35... Qc2+ {[%clk 0:01:25.1]}
0-1

[Event "*** Titled Tuesday Blitz"]
[Site "Chess.com"]
[Date "2019.06.04"]
[Round "5"]
[White "m3alam"]
[Black "oogee"]
[Result "0-1"]
[WhiteElo "2347"]
[BlackElo "2334"]
[TimeControl "180+2"]
[EndTime "14:04:51 PDT"]
[Termination "oogee won by resignation"]

1. d4 {[%clk 0:03:01.9]} 1... Nf6 {[%clk 0:03:00.5]} 2. Nf3 {[%clk 0:03:01.9]}
2... g6 {[%clk 0:03:01.3]} 3. g3 {[%clk 0:03:03.3]} 3... Bg7 {[%clk 0:03:01.7]}
4. Bg2 {[%clk 0:03:05.2]} 4... O-O {[%clk 0:03:02.9]} 5. O-O {[%clk 0:03:07.1]}
5... d6 {[%clk 0:03:04.4]} 6. c4 {[%clk 0:03:08.4]} 6... Nc6 {[%clk 0:03:05.7]}
7. Nc3 {[%clk 0:03:09.8]} 7... e5 {[%clk 0:03:06.4]} 8. d5 {[%clk 0:03:10.3]}
8... Nb8 {[%clk 0:03:06.9]} 9. Ne1 {[%clk 0:03:11.6]} 9... a5 {[%clk 0:03:06.2]}
10. Nd3 {[%clk 0:03:12.6]} 10... Na6 {[%clk 0:03:06.4]} 11. e4 {[%clk
0:03:09.7]} 11... Nd7 {[%clk 0:03:05.3]} 12. Be3 {[%clk 0:03:10]} 12... Ndc5
{[%clk 0:03:02.3]} 13. Nxc5 {[%clk 0:03:10]} 13... Nxc5 {[%clk 0:03:03.5]} 14.
Bxc5 {[%clk 0:03:00.9]} 14... dxc5 {[%clk 0:03:03.6]} 15. Qd2 {[%clk 0:02:57.2]}
15... f5 {[%clk 0:02:58.4]} 16. exf5 {[%clk 0:02:44]} 16... gxf5 {[%clk
0:02:58.4]} 17. Rae1 {[%clk 0:02:35.7]} 17... Bd7 {[%clk 0:02:33.6]} 18. d6
{[%clk 0:02:32.8]} 18... c6 {[%clk 0:02:34.5]} 19. Qe3 {[%clk 0:02:21.6]} 19...
b6 {[%clk 0:02:29.4]} 20. Nd1 {[%clk 0:01:50.6]} 20... Rf6 {[%clk 0:01:58.6]}
21. Qxe5 {[%clk 0:01:45.4]} 21... f4 {[%clk 0:01:54.5]} 22. Qe4 {[%clk
0:01:29.3]} 22... Bf5 {[%clk 0:01:41.6]} 23. Qxc6 {[%clk 0:01:29.1]} 23... Rc8
{[%clk 0:01:36.4]} 24. Bd5+ {[%clk 0:01:24]} 24... Kh8 {[%clk 0:01:32.5]} 25.
Qb7 {[%clk 0:01:21.1]} 25... Qxd6 {[%clk 0:01:24.9]} 26. Re7 {[%clk 0:01:20]}
26... Rg6 {[%clk 0:01:10.1]} 27. Nc3 {[%clk 0:01:13.8]} 27... fxg3 {[%clk
0:01:09.6]} 28. fxg3 {[%clk 0:01:14.2]} 28... Rxg3+ {[%clk 0:01:04.6]} 29. hxg3
{[%clk 0:01:13.7]} 29... Qxg3+ {[%clk 0:01:05.6]} 30. Bg2 {[%clk 0:01:00.6]}
30... Bd4+ {[%clk 0:01:06.3]} 31. Kh1 {[%clk 0:00:53.4]} 31... Qh4+ {[%clk
0:01:06.6]} 0-1

[Event "*** Titled Tuesday Blitz"]
[Site "Chess.com"]
[Date "2019.06.04"]
[Round "5"]
[White "Lagmantr"]
[Black "KhazarBabazada"]
[Result "1-0"]
[WhiteElo "2575"]
[BlackElo "2596"]
[TimeControl "180+2"]
[EndTime "14:04:52 PDT"]
[Termination "Lagmantr won by resignation"]

1. e4 {[%clk 0:03:00]} 1... Nf6 {[%clk 0:03:00.2]} 2. e5 {[%clk 0:03:00.7]} 2...
Nd5 {[%clk 0:03:01.4]} 3. Nc3 {[%clk 0:03:02.4]} 3... Nxc3 {[%clk 0:03:01.3]} 4.
bxc3 {[%clk 0:03:04.3]} 4... d6 {[%clk 0:03:03]} 5. f4 {[%clk 0:03:05.4]} 5...
g6 {[%clk 0:03:01.3]} 6. Nf3 {[%clk 0:03:06.1]} 6... Bg7 {[%clk 0:03:02.8]} 7.
d4 {[%clk 0:03:07.3]} 7... O-O {[%clk 0:03:04.3]} 8. Bd3 {[%clk 0:03:06.6]} 8...
c5 {[%clk 0:03:05.5]} 9. O-O {[%clk 0:03:07.2]} 9... cxd4 {[%clk 0:03:03.1]} 10.
cxd4 {[%clk 0:03:08.1]} 10... dxe5 {[%clk 0:03:02.9]} 11. fxe5 {[%clk
0:03:07.7]} 11... Bg4 {[%clk 0:03:03.7]} 12. c3 {[%clk 0:03:07.7]} 12... Nc6
{[%clk 0:03:03.9]} 13. Rb1 {[%clk 0:03:08.5]} 13... Na5 {[%clk 0:02:59.1]} 14.
h3 {[%clk 0:03:08.3]} 14... Be6 {[%clk 0:02:59.6]} 15. Ng5 {[%clk 0:02:23.8]}
15... Bd5 {[%clk 0:02:56.6]} 16. Qg4 {[%clk 0:02:19.6]} 16... h5 {[%clk
0:02:11.8]} 17. Qh4 {[%clk 0:02:05.6]} 17... Rc8 {[%clk 0:01:48.6]} 18. Bd2
{[%clk 0:01:45.5]} 18... f6 {[%clk 0:01:49.1]} 19. Bxg6 {[%clk 0:01:34.3]} 19...
fxg5 {[%clk 0:01:02.1]} 20. Qxh5 {[%clk 0:01:35.2]} 20... Rf6 {[%clk 0:01:03.2]}
21. exf6 {[%clk 0:01:26.3]} 21... exf6 {[%clk 0:01:03.8]} 22. Bxg5 {[%clk
0:01:21.6]} 22... Rc6 {[%clk 0:00:53.9]} 23. Qh7+ {[%clk 0:01:14.8]} 23... Kf8
{[%clk 0:00:54.5]} 24. Bh6 {[%clk 0:01:12.2]} 24... Qd7 {[%clk 0:00:42.1]} 25.
Qh8+ {[%clk 0:01:06.5]} 25... Bg8 {[%clk 0:00:42.9]} 26. Bh7 {[%clk 0:01:07.6]}
26... Qf7 {[%clk 0:00:40.5]} 27. Bxg8 {[%clk 0:01:08.3]} 27... Qxg8 {[%clk
0:00:42.4]} 28. Bxg7+ {[%clk 0:01:09.5]} 1-0

[Event "*** Titled Tuesday Blitz"]
[Site "Chess.com"]
[Date "2019.06.04"]
[Round "5"]
[White "lachesisQ"]
[Black "Rumpel-VK"]
[Result "1-0"]
[WhiteElo "3068"]
[BlackElo "2547"]
[TimeControl "180+2"]
[EndTime "14:04:53 PDT"]
[Termination "lachesisQ won on time"]

1. e4 {[%clk 0:03:01.9]} 1... d6 {[%clk 0:02:59.1]} 2. d4 {[%clk 0:03:02.5]}
2... Nf6 {[%clk 0:02:59.6]} 3. Nc3 {[%clk 0:03:03.9]} 3... Nbd7 {[%clk 0:03:00]}
4. Nf3 {[%clk 0:03:01.5]} 4... e5 {[%clk 0:03:00.6]} 5. g4 {[%clk 0:03:01.8]}
5... Nxg4 {[%clk 0:02:58.7]} 6. Rg1 {[%clk 0:03:01.9]} 6... Ngf6 {[%clk
0:02:59.2]} 7. Bc4 {[%clk 0:03:03.3]} 7... h6 {[%clk 0:02:58.5]} 8. Be3 {[%clk
0:03:04.2]} 8... c6 {[%clk 0:02:59.2]} 9. dxe5 {[%clk 0:02:33.8]} 9... dxe5
{[%clk 0:02:55.6]} 10. Qd3 {[%clk 0:02:33.9]} 10... b5 {[%clk 0:02:48.4]} 11.
Bxf7+ {[%clk 0:02:32.4]} 11... Kxf7 {[%clk 0:02:48.4]} 12. Nxe5+ {[%clk
0:02:33.8]} 12... Nxe5 {[%clk 0:02:46.2]} 13. Qxd8 {[%clk 0:02:34.7]} 13... Nf3+
{[%clk 0:02:40.9]} 14. Kd1 {[%clk 0:02:35.6]} 14... Nxg1 {[%clk 0:02:32.5]} 15.
Kc1 {[%clk 0:02:36.7]} 15... Nf3 {[%clk 0:02:22.3]} 16. Qc7+ {[%clk 0:02:15.5]}
16... Bd7 {[%clk 0:01:56.2]} 17. Qf4 {[%clk 0:02:06.4]} 17... Ng5 {[%clk
0:01:15.5]} 18. e5 {[%clk 0:02:04.6]} 18... Ne6 {[%clk 0:00:27.2]} 19. Qf3
{[%clk 0:02:05.3]} 19... Be7 {[%clk 0:00:27]} 20. exf6 {[%clk 0:01:58.7]} 20...
gxf6 {[%clk 0:00:27.9]} 21. Qh5+ {[%clk 0:01:55.8]} 21... Kg7 {[%clk 0:00:27.5]}
22. Kd2 {[%clk 0:01:56.9]} 22... Rad8 {[%clk 0:00:17.5]} 23. Rg1+ {[%clk
0:01:57.1]} 23... Ng5 {[%clk 0:00:18.7]} 24. Kc1 {[%clk 0:01:58.4]} 24... Kf8
{[%clk 0:00:17.9]} 25. h4 {[%clk 0:01:56.4]} 25... Nf7 {[%clk 0:00:18.8]} 26.
Ne4 {[%clk 0:01:54]} 26... Be6 {[%clk 0:00:17]} 27. Qg6 {[%clk 0:01:44.9]} 27...
Ke8 {[%clk 0:00:04.1]} 28. Nxf6+ {[%clk 0:01:45.2]} 28... Bxf6 {[%clk
0:00:05.5]} 29. Qxf6 {[%clk 0:01:47.1]} 29... Bd5 {[%clk 0:00:05.6]} 30. Bc5
{[%clk 0:01:42.9]} 30... Rd7 {[%clk 0:00:06.9]} 31. Re1+ {[%clk 0:01:42.7]} 1-0

[Event "*** Titled Tuesday Blitz"]
[Site "Chess.com"]
[Date "2019.06.04"]
[Round "5"]
[White "akretchetov"]
[Black "hellokostya"]
[Result "0-1"]
[WhiteElo "2358"]
[BlackElo "2527"]
[TimeControl "180+2"]
[EndTime "14:05:02 PDT"]
[Termination "hellokostya won by resignation"]

1. Nf3 {[%clk 0:03:01.9]} 1... Nf6 {[%clk 0:02:58.6]} 2. c4 {[%clk 0:03:01.4]}
2... g6 {[%clk 0:02:59.7]} 3. Nc3 {[%clk 0:03:01.8]} 3... Bg7 {[%clk 0:03:01.1]}
4. e4 {[%clk 0:03:02.7]} 4... d6 {[%clk 0:03:02.6]} 5. d4 {[%clk 0:03:03.9]}
5... O-O {[%clk 0:03:03.9]} 6. h3 {[%clk 0:03:05.2]} 6... Na6 {[%clk 0:03:04.9]}
7. Be3 {[%clk 0:03:02.3]} 7... c6 {[%clk 0:03:05.7]} 8. Be2 {[%clk 0:03:01.5]}
8... e5 {[%clk 0:03:06.4]} 9. d5 {[%clk 0:02:57.2]} 9... Nh5 {[%clk 0:03:06.9]}
10. g3 {[%clk 0:02:53.5]} 10... cxd5 {[%clk 0:03:07.8]} 11. cxd5 {[%clk
0:02:54.3]} 11... f5 {[%clk 0:03:08.9]} 12. Nh2 {[%clk 0:02:29.9]} 12... f4
{[%clk 0:02:54.7]} 13. gxf4 {[%clk 0:02:21.3]} 13... Nxf4 {[%clk 0:02:50]} 14.
Ng4 {[%clk 0:02:18.5]} 14... Ng2+ {[%clk 0:02:36.4]} 15. Kd2 {[%clk 0:02:18.5]}
15... Nxe3 {[%clk 0:02:37]} 16. fxe3 {[%clk 0:02:17.2]} 16... h5 {[%clk
0:02:19.9]} 17. Nh2 {[%clk 0:02:15.2]} 17... Bh6 {[%clk 0:02:20.4]} 18. Qg1
{[%clk 0:02:14.2]} 18... Kh7 {[%clk 0:02:19.6]} 19. Nf3 {[%clk 0:02:11.4]} 19...
Nc5 {[%clk 0:02:11]} 20. Qg3 {[%clk 0:02:05.6]} 20... Qa5 {[%clk 0:02:04.9]} 21.
Bd3 {[%clk 0:01:48]} 21... Qb6 {[%clk 0:01:23.3]} 22. Nd1 {[%clk 0:01:15.6]}
22... Nxd3 {[%clk 0:01:18.6]} 23. Kxd3 {[%clk 0:01:15.2]} 23... Bd7 {[%clk
0:01:19.3]} 24. Rg1 {[%clk 0:01:15.1]} 24... Bb5+ {[%clk 0:01:18.1]} 25. Kd2
{[%clk 0:01:16.4]} 25... Qa5+ {[%clk 0:01:08]} 26. Nc3 {[%clk 0:01:17.2]} 26...
Rf6 {[%clk 0:00:55.7]} 27. Ng5+ {[%clk 0:01:11.9]} 27... Bxg5 {[%clk 0:00:52]}
28. Qxg5 {[%clk 0:01:12.4]} 28... Raf8 {[%clk 0:00:51.8]} 29. Rg2 {[%clk
0:01:05.3]} 29... Qb4 {[%clk 0:00:46.8]} 30. Rb1 {[%clk 0:01:00.8]} 30... Qc4
{[%clk 0:00:43.6]} 31. Nxb5 {[%clk 0:00:54.1]} 31... Rf2+ {[%clk 0:00:41.5]} 32.
Rxf2 {[%clk 0:00:55.2]} 32... Rxf2+ {[%clk 0:00:42.1]} 0-1

[Event "*** Titled Tuesday Blitz"]
[Site "Chess.com"]
[Date "2019.06.04"]
[Round "5"]
[White "LonesomeGeorge1"]
[Black "bugsbunny444"]
[Result "1-0"]
[WhiteElo "2380"]
[BlackElo "2482"]
[TimeControl "180+2"]
[EndTime "14:05:04 PDT"]
[Termination "LonesomeGeorge1 won by resignation"]

1. e4 {[%clk 0:03:01.9]} 1... e6 {[%clk 0:03:00.6]} 2. Qe2 {[%clk 0:03:01]} 2...
c5 {[%clk 0:03:01]} 3. Nf3 {[%clk 0:02:59.9]} 3... Nc6 {[%clk 0:03:02.2]} 4. c3
{[%clk 0:03:00.4]} 4... Nge7 {[%clk 0:03:00.4]} 5. d4 {[%clk 0:02:57.5]} 5...
cxd4 {[%clk 0:02:47.4]} 6. cxd4 {[%clk 0:02:59.4]} 6... d5 {[%clk 0:02:48.8]} 7.
Nc3 {[%clk 0:03:00.3]} 7... dxe4 {[%clk 0:02:45.5]} 8. Qxe4 {[%clk 0:03:02.2]}
8... g6 {[%clk 0:02:32]} 9. h4 {[%clk 0:03:01.4]} 9... Bg7 {[%clk 0:02:26.5]}
10. Be3 {[%clk 0:02:53.6]} 10... h5 {[%clk 0:02:14.3]} 11. Rd1 {[%clk
0:02:52.4]} 11... O-O {[%clk 0:01:59.6]} 12. Bc4 {[%clk 0:02:48.1]} 12... Nb4
{[%clk 0:01:34.7]} 13. O-O {[%clk 0:02:28]} 13... Nbd5 {[%clk 0:01:24.5]} 14.
Bg5 {[%clk 0:02:28.1]} 14... Qc7 {[%clk 0:01:11]} 15. Bb3 {[%clk 0:02:16.6]}
15... Nxc3 {[%clk 0:00:56.2]} 16. bxc3 {[%clk 0:02:18.5]} 16... Nf5 {[%clk
0:00:57]} 17. c4 {[%clk 0:02:11.2]} 17... Bd7 {[%clk 0:00:55.7]} 18. d5 {[%clk
0:02:10.2]} 18... exd5 {[%clk 0:00:51.3]} 19. cxd5 {[%clk 0:02:12.1]} 19... Rfe8
{[%clk 0:00:52.3]} 20. Qb4 {[%clk 0:02:12.1]} 20... a5 {[%clk 0:00:49.8]} 21.
Qd2 {[%clk 0:02:01.5]} 21... a4 {[%clk 0:00:43.9]} 22. d6 {[%clk 0:02:02.3]}
22... Qa5 {[%clk 0:00:25.5]} 23. Bd5 {[%clk 0:01:40.7]} 23... Qxd2 {[%clk
0:00:20.5]} 24. Rxd2 {[%clk 0:01:42.6]} 24... Rab8 {[%clk 0:00:13.2]} 25. Bf4
{[%clk 0:01:37.5]} 25... b5 {[%clk 0:00:12.6]} 26. Ng5 {[%clk 0:01:37.3]} 26...
Nh6 {[%clk 0:00:12.3]} 27. Rc1 {[%clk 0:01:35.8]} 27... Rec8 {[%clk 0:00:13.1]}
28. Rc7 {[%clk 0:01:36.3]} 28... Rxc7 {[%clk 0:00:04.7]} 29. dxc7 {[%clk
0:01:37]} 29... Rc8 {[%clk 0:00:06.6]} 30. Bxf7+ {[%clk 0:01:28.4]} 30... Nxf7
{[%clk 0:00:07.6]} 31. Rxd7 {[%clk 0:01:29.3]} 1-0

[Event "*** Titled Tuesday Blitz"]
[Site "Chess.com"]
[Date "2019.06.04"]
[Round "5"]
[White "Satscho"]
[Black "LuisFSiles"]
[Result "1-0"]
[WhiteElo "2267"]
[BlackElo "2169"]
[TimeControl "180+2"]
[EndTime "14:05:05 PDT"]
[Termination "Satscho won by resignation"]

1. e4 {[%clk 0:03:01.9]} 1... e5 {[%clk 0:02:59.6]} 2. Nf3 {[%clk 0:03:02.9]}
2... Nc6 {[%clk 0:03:00.3]} 3. Bb5 {[%clk 0:03:03.9]} 3... Nf6 {[%clk
0:02:59.4]} 4. O-O {[%clk 0:03:03.8]} 4... Nxe4 {[%clk 0:02:59]} 5. d4 {[%clk
0:03:05.2]} 5... Nd6 {[%clk 0:02:58.9]} 6. Bxc6 {[%clk 0:03:06.7]} 6... dxc6
{[%clk 0:02:59.9]} 7. dxe5 {[%clk 0:03:08.4]} 7... Ne4 {[%clk 0:03:00.8]} 8.
Qxd8+ {[%clk 0:03:10.3]} 8... Kxd8 {[%clk 0:03:02.3]} 9. Re1 {[%clk 0:03:06.4]}
9... Nc5 {[%clk 0:03:01.7]} 10. Nd4 {[%clk 0:03:05.1]} 10... Ne6 {[%clk
0:02:54.5]} 11. Ne2 {[%clk 0:02:56.9]} 11... c5 {[%clk 0:02:26.2]} 12. Nbc3
{[%clk 0:02:51.5]} 12... c6 {[%clk 0:02:22.1]} 13. Be3 {[%clk 0:02:49.8]} 13...
Kc7 {[%clk 0:02:13.1]} 14. f4 {[%clk 0:02:50]} 14... g6 {[%clk 0:02:11.6]} 15.
Kf2 {[%clk 0:02:49.3]} 15... h5 {[%clk 0:02:11.4]} 16. g3 {[%clk 0:02:48.7]}
16... b6 {[%clk 0:02:09.4]} 17. h3 {[%clk 0:02:49.3]} 17... Ba6 {[%clk
0:02:02.3]} 18. Rad1 {[%clk 0:02:49.5]} 18... Rd8 {[%clk 0:01:59.5]} 19. Ne4
{[%clk 0:02:50.6]} 19... Nd4 {[%clk 0:01:51.7]} 20. Nxd4 {[%clk 0:02:47.8]}
20... cxd4 {[%clk 0:01:52.4]} 21. Rxd4 {[%clk 0:02:46.6]} 21... Rxd4 {[%clk
0:01:42.2]} 22. Bxd4 {[%clk 0:02:48.5]} 22... Be7 {[%clk 0:01:43.4]} 23. e6
{[%clk 0:02:21.5]} 23... Rf8 {[%clk 0:01:32.3]} 24. Be5+ {[%clk 0:02:20.4]}
24... Kc8 {[%clk 0:01:30.8]} 25. Bd6 {[%clk 0:02:19.6]} 25... Kd8 {[%clk
0:01:13.3]} 26. Bxe7+ {[%clk 0:01:25.3]} 26... Kxe7 {[%clk 0:01:13.6]} 27. exf7
{[%clk 0:01:27.2]} 27... Kxf7 {[%clk 0:01:11.4]} 28. Ng5+ {[%clk 0:01:28.3]}
28... Kg8 {[%clk 0:00:56.1]} 29. Re7 {[%clk 0:01:27.8]} 29... Rd8 {[%clk
0:00:53.8]} 30. Rxa7 {[%clk 0:01:21.1]} 30... Rd2+ {[%clk 0:00:37.1]} 31. Ke3
{[%clk 0:01:22.3]} 31... Re2+ {[%clk 0:00:38.1]} 32. Kf3 {[%clk 0:01:23.8]}
32... Bb5 {[%clk 0:00:35.5]} 33. a4 {[%clk 0:01:24.5]} 33... Bc4 {[%clk
0:00:35.2]} 34. b3 {[%clk 0:01:25.8]} 34... Rxc2 {[%clk 0:00:36.1]} 35. bxc4
{[%clk 0:01:26.7]} 35... Rc3+ {[%clk 0:00:37.2]} 36. Ke4 {[%clk 0:01:25.6]}
36... Rxc4+ {[%clk 0:00:39.1]} 37. Ke5 {[%clk 0:01:27.2]} 1-0

[Event "*** Titled Tuesday Blitz"]
[Site "Chess.com"]
[Date "2019.06.04"]
[Round "5"]
[White "xberli"]
[Black "RU_B9"]
[Result "1-0"]
[WhiteElo "2475"]
[BlackElo "2044"]
[TimeControl "180+2"]
[EndTime "14:05:07 PDT"]
[Termination "xberli won by checkmate"]

1. e4 {[%clk 0:03:01.9]} 1... e5 {[%clk 0:02:59.7]} 2. Nf3 {[%clk 0:03:03]} 2...
Nf6 {[%clk 0:03:00.7]} 3. Nxe5 {[%clk 0:03:02.9]} 3... d6 {[%clk 0:03:02]} 4.
Nf3 {[%clk 0:03:04.2]} 4... Nxe4 {[%clk 0:03:02.1]} 5. Nc3 {[%clk 0:03:05.7]}
5... Nxc3 {[%clk 0:03:03.3]} 6. dxc3 {[%clk 0:03:07.6]} 6... Be7 {[%clk
0:03:04]} 7. Be3 {[%clk 0:03:08.7]} 7... Nc6 {[%clk 0:03:05.4]} 8. Qd2 {[%clk
0:03:08.9]} 8... Be6 {[%clk 0:03:03.7]} 9. Nd4 {[%clk 0:03:06.6]} 9... Nxd4
{[%clk 0:03:02.1]} 10. Bxd4 {[%clk 0:03:08.5]} 10... Bf6 {[%clk 0:03:02.5]} 11.
O-O-O {[%clk 0:03:09]} 11... Bxd4 {[%clk 0:02:43.3]} 12. cxd4 {[%clk 0:03:10.9]}
12... d5 {[%clk 0:02:43.2]} 13. Bd3 {[%clk 0:03:08.8]} 13... Qd7 {[%clk
0:02:43.1]} 14. Qg5 {[%clk 0:03:04.4]} 14... f6 {[%clk 0:02:37.5]} 15. Qh5+
{[%clk 0:03:00]} 15... Qf7 {[%clk 0:02:36.3]} 16. Qf3 {[%clk 0:03:00.5]} 16...
O-O-O {[%clk 0:02:32]} 17. Rde1 {[%clk 0:03:01.4]} 17... Kb8 {[%clk 0:02:31.4]}
18. Re3 {[%clk 0:03:01.4]} 18... Bd7 {[%clk 0:02:15.9]} 19. Rhe1 {[%clk
0:03:01.1]} 19... Rde8 {[%clk 0:02:17.2]} 20. Kd2 {[%clk 0:02:54.1]} 20... h6
{[%clk 0:02:12.7]} 21. Rxe8+ {[%clk 0:02:47.2]} 21... Rxe8 {[%clk 0:02:12.3]}
22. Rxe8+ {[%clk 0:02:48.5]} 22... Bxe8 {[%clk 0:02:13.2]} 23. Qe3 {[%clk
0:02:44.3]} 23... Bd7 {[%clk 0:02:08.9]} 24. a3 {[%clk 0:02:40.6]} 24... b6
{[%clk 0:01:49.9]} 25. h4 {[%clk 0:02:40.9]} 25... c6 {[%clk 0:01:47.2]} 26. h5
{[%clk 0:02:35.4]} 26... Kb7 {[%clk 0:01:47.6]} 27. f3 {[%clk 0:02:32.1]} 27...
Qe8 {[%clk 0:01:31.6]} 28. Qf4 {[%clk 0:02:28.3]} 28... Qxh5 {[%clk 0:01:28.8]}
29. Qd6 {[%clk 0:02:28]} 29... Qf7 {[%clk 0:01:29.9]} 30. a4 {[%clk 0:02:25.1]}
30... Qe6 {[%clk 0:01:26.1]} 31. Qf8 {[%clk 0:02:23.2]} 31... g5 {[%clk
0:01:22.7]} 32. Qxh6 {[%clk 0:02:20.3]} 32... c5 {[%clk 0:01:20.6]} 33. dxc5
{[%clk 0:02:14.9]} 33... bxc5 {[%clk 0:01:21.8]} 34. a5 {[%clk 0:02:16.2]} 34...
c4 {[%clk 0:01:18]} 35. Be2 {[%clk 0:02:17.2]} 35... Qd6 {[%clk 0:01:12.2]} 36.
c3 {[%clk 0:02:12.2]} 36... Bf5 {[%clk 0:01:10.3]} 37. Qg7+ {[%clk 0:02:04]}
37... Ka6 {[%clk 0:01:10.1]} 38. Qg8 {[%clk 0:02:03.1]} 38... Qf4+ {[%clk
0:01:04.1]} 39. Kd1 {[%clk 0:02:02.8]} 39... Qe5 {[%clk 0:00:51.5]} 40. Qd8
{[%clk 0:01:56.8]} 40... Bd3 {[%clk 0:00:44.4]} 41. Bxd3 {[%clk 0:01:55.1]}
41... cxd3 {[%clk 0:00:44.8]} 42. Qc8+ {[%clk 0:01:53]} 42... Kxa5 {[%clk
0:00:44.5]} 43. Qc5+ {[%clk 0:01:38.6]} 43... Ka6 {[%clk 0:00:41.9]} 44. Qc6+
{[%clk 0:01:38.4]} 44... Ka5 {[%clk 0:00:42.5]} 45. b4# {[%clk 0:01:39.8]} 1-0